bitfinex-derivatives/quotes_ETHF0:USTF0_20251006
["timestamp","ask_amount","ask_price","bid_price","bid_amount"]
[1759732141889,0.4479,4564.0,4563.9,0.39428]
[1759732142089,0.4479,4564.0,4563.9,0.61428]
[1759732142287,0.3233,4563.9,4563.8,3.2105479]
[1759732142594,0.7523,4563.9,4563.8,40.8027479]
[1759732143283,0.3233,4563.9,4563.8,44.0105479]
[1759732143790,0.3233,4566.4,4564.7,9.8552]
[1759732144086,0.1246,4566.5,4566.3,0.39407]
[1759732144291,0.1246,4566.5,4566.4,0.22]
[1759732144583,0.1246,4566.5,4566.3,0.39407]
[1759732144792,0.1246,4566.0,4565.6,3.2078]
[1759732145103,0.1246,4566.0,4565.8,0.39411]
[1759732145396,0.12679196,4566.5,4566.3,0.39407]
[1759732145586,0.12679196,4566.5,4566.4,0.22]
[1759732145886,0.12679196,4566.5,4566.4,3.4278]
[1759732146093,0.3233,4565.9,4565.8,3.2078]
[1759732147294,0.12679196,4566.5,4566.2,0.39408]
[1759732147492,0.00219196,4566.5,4566.2,0.39408]
[1759732147993,0.00219196,4566.5,4566.4,0.39406]
[1759732148189,0.3233,4566.4,4566.1,0.39408]
[1759732148485,0.3233,4566.4,4566.0,0.61409]
[1759732148681,0.12679196,4566.5,4566.2,0.39408]
[1759732149085,0.45009196,4566.5,4566.4,40.8]
[1759732149793,0.67009196,4566.5,4566.4,40.8]
[1759732150482,0.45009196,4566.5,4566.4,40.8]
[1759732152584,1.06414196,4566.5,4566.4,40.8]
[1759732152784,5.45009196,4566.5,4566.4,40.8]
[1759732152992,0.45009196,4566.5,4566.4,40.8]
[1759732153297,0.45009196,4566.5,4566.3,0.39406]
[1759732153298,0.3233,4566.4,4566.3,0.39406]
[1759732153493,0.5433,4566.4,4566.1,0.39409]
[1759732153790,0.71736,4566.4,4566.3,40.8]
[1759732153983,0.93736,4566.4,4566.3,40.8]
[1759732155391,0.5433,4566.4,4566.3,40.8]
[1759732156289,0.39625196,4566.5,4566.3,40.8]
[1759732156487,0.5433,4566.4,4566.3,0.39407]
[1759732156688,0.3233,4566.4,4566.3,0.39407]
[1759732156895,0.5433,4566.4,4566.3,41.19407]
[1759732157094,0.3233,4566.4,4566.3,41.19407]
[1759732157591,0.5433,4566.4,4566.3,41.19407]
[1759732157794,0.3233,4566.4,4566.3,41.19407]
[1759732157992,0.5433,4566.4,4566.3,41.19407]
[1759732159294,0.5433,4566.4,4566.3,40.8]
[1759732159594,0.3333,4566.4,4566.3,41.19406]
[1759732159790,0.5533,4566.4,4566.3,40.8]
[1759732159988,0.5533,4566.4,4562.6,21.69158]
[1759732159989,0.3333,4565.9,4565.8,0.39411]
[1759732160191,0.5533,4565.9,4565.8,0.39411]
[1759732160399,0.5533,4565.9,4565.8,41.19411]
[1759732160990,0.3333,4565.9,4565.8,41.19411]
[1759732161190,0.5533,4565.9,4565.8,41.19411]
[1759732162084,0.5533,4565.9,4565.8,40.8]
[1759732162693,0.5567,4565.5,4565.4,3.2078]
[1759732162895,0.89,4565.5,4565.4,3.2078]
[1759732163096,1.11,4565.5,4565.4,3.2078]
[1759732163297,1.11,4565.5,4565.4,44.0078]
[1759732165092,0.4593,4565.5,4565.4,44.0078]
[1759732165291,0.6793,4565.5,4565.4,44.0078]
[1759732165492,0.4593,4565.5,4565.4,44.0078]
[1759732165690,0.6793,4565.5,4565.4,44.0078]
[1759732167490,0.6793,4565.5,4565.4,40.8]
[1759732168290,1.14909464,4565.5,4565.4,40.8]
[1759732168490,0.92909464,4565.5,4565.4,40.8]
[1759732168687,1.14909464,4565.5,4565.4,40.8]
[1759732169600,0.68979464,4565.5,4565.4,44.40195]
[1759732170500,0.46979464,4565.5,4565.4,44.40195]
[1759732171101,0.68979464,4565.5,4565.4,44.40195]
[1759732171599,1.14909464,4565.5,4565.4,44.40195]
[1759732172196,0.4593,4566.0,4565.9,0.3941]
[1759732172396,0.4593,4566.0,4565.9,3.6019]
[1759732172397,0.6793,4566.0,4565.9,3.6019]
[1759732172992,1.11,4566.0,4565.9,3.2078]
[1759732173193,0.89,4566.0,4565.9,3.2078]
[1759732173395,2.27899793,4566.0,4565.9,3.2078]
[1759732173596,2.05899793,4566.0,4565.9,3.2078]
[1759732173803,2.27899793,4566.0,4565.9,3.2078]
[1759732174000,2.05899793,4566.0,4565.9,3.2078]
[1759732174201,1.62829793,4566.0,4565.9,3.2078]
[1759732174502,0.6793,4566.0,4565.9,3.2078]
[1759732176101,0.6793,4566.0,4565.9,44.0078]
[1759732176300,0.4593,4566.0,4565.9,44.0078]
[1759732176501,0.6793,4566.0,4565.9,44.0078]
[1759732177705,0.4593,4566.0,4565.9,44.0078]
[1759732178306,0.6793,4566.0,4565.9,40.8]
[1759732179005,1.84829793,4566.0,4565.9,40.8]
[1759732179402,0.7611,4565.6,4565.5,0.39413]
[1759732179603,0.761,4565.6,4565.5,0.39413]
[1759732179804,0.9811,4565.6,4565.5,0.39413]
[1759732180004,0.9811,4565.6,4565.5,40.8]
[1759732180205,0.3353,4565.6,4565.5,40.8]
[1759732180606,0.5553,4565.6,4565.5,40.8]
[1759732180912,0.3353,4565.6,4565.5,40.8]
[1759732181110,0.5553,4565.6,4565.5,40.8]
[1759732183104,1.56307793,4566.2,4566.1,0.39409]
[1759732183105,0.3353,4566.2,4566.1,0.39409]
[1759732183307,0.3353,4566.2,4566.1,3.60189]
[1759732183504,0.5553,4566.2,4566.1,3.60189]
[1759732183709,0.5553,4566.2,4566.1,44.40189]
[1759732184114,1.02461533,4566.2,4566.1,44.40189]
[1759732184405,0.80461533,4566.2,4566.1,44.40189]
[1759732184610,1.02461533,4566.2,4566.1,44.40189]
[1759732185905,0.80461533,4566.2,4566.1,44.40189]
[1759732186402,1.02461533,4566.2,4566.1,44.40189]
[1759732186608,0.27833512,4566.2,4566.1,49.40189]
[1759732186912,0.68469196,4566.5,4566.4,0.39406]
[1759732187410,0.46469196,4566.5,4566.4,0.39406]
[1759732187610,0.68469196,4566.5,4566.4,0.39406]
[1759732187812,0.46469196,4566.5,4566.4,0.39406]
[1759732188106,0.68469196,4566.5,4566.4,0.39406]
[1759732188515,0.307,4566.4,4566.1,44.0078]
[1759732188809,0.7283,4566.4,4566.3,0.39406]
[1759732189005,0.9483,4566.4,4566.3,0.39406]
[1759732189212,0.7283,4566.2,4566.1,44.0078]
[1759732189413,0.7283,4566.2,4566.1,40.8]
[1759732189612,3.4278,4566.4,4565.6,0.39412]
[1759732189613,0.7283,4565.7,4565.6,0.39412]
[1759732189912,0.9483,4565.7,4565.6,0.39412]
[1759732190116,0.9483,4565.7,4565.6,41.19412]
[1759732191014,0.9483,4565.7,4565.6,40.8]
[1759732192007,0.39413,4565.6,4565.0,3.2078]
[1759732192209,0.7283,4565.1,4565.0,3.2078]
[1759732192513,0.9483,4565.1,4565.0,44.0078]
[1759732192815,0.9483,4565.1,4565.0,40.8]
[1759732193013,5.9483,4565.1,4565.0,40.8]
[1759732193210,0.4213,4564.6,4564.5,3.2078]
[1759732193410,0.9483,4564.6,4564.5,3.2078]
[1759732193611,0.7283,4564.6,4564.5,44.0078]
[1759732194119,0.7283,4564.6,4564.5,40.8]
[1759732194120,0.9483,4564.6,4564.5,40.8]
[1759732194321,0.7283,4564.6,4564.5,40.8]
[1759732194510,0.9483,4564.6,4564.5,40.8]
[1759732198010,0.6413,4564.6,4564.4,0.39422]
[1759732198308,0.6397,4564.5,4564.4,0.39422]
[1759732198518,0.6397,4564.5,4564.4,41.19422]
[1759732200619,0.6397,4564.5,4564.4,44.40202]
[1759732200925,0.6543,4564.5,4564.4,44.40202]
[1759732201313,0.4343,4565.0,4564.9,0.39419]
[1759732201521,0.6543,4565.0,4564.9,3.60199]
[1759732201820,3.2078,4565.9,4565.4,0.39415]
[1759732202022,3.2078,4565.9,4565.8,0.39411]
[1759732202424,3.33729196,4566.5,4565.8,0.39411]
[1759732202727,0.22,4565.9,4565.8,0.39411]
[1759732202928,3.33729196,4566.5,4565.8,0.39411]
[1759732203113,0.12949196,4566.5,4565.6,40.8]
[1759732203320,0.12949196,4566.5,4566.4,0.39406]
[1759732203614,0.00219196,4566.5,4566.4,0.39406]
[1759732203820,0.307,4567.3,4567.2,0.39399]
[1759732204120,3.3351,4567.5,4567.4,0.39397]
[1759732204314,3.8621,4567.5,4567.4,0.39397]
[1759732204517,0.39398,4567.3,4565.9,3.2078]
[1759732204715,0.4343,4567.0,4566.8,0.39402]
[1759732204916,0.00159212,4567.0,4566.9,3.60182]
[1759732205124,0.00159212,4567.0,4566.9,44.40182]
[1759732205524,0.00159212,4567.0,4566.9,44.0078]
[1759732205933,0.00159212,4567.0,4566.9,44.40182]
[1759732206233,3.3351,4568.0,4567.6,0.39396]
[1759732206429,0.3327,4567.5,4567.4,3.2078]
[1759732206735,0.6397,4567.5,4567.4,3.2078]
[1759732207033,0.6397,4567.5,4566.9,40.8]
[1759732207034,0.1273,4567.5,4566.9,40.8]
[1759732207233,0.307,4567.4,4567.3,0.39398]
[1759732207533,0.22,4567.4,4567.3,3.60178]
[1759732208032,0.307,4567.4,4567.3,3.60178]
[1759732208432,0.0016035,4567.5,4567.3,3.60178]
[1759732209037,0.0016035,4567.5,4567.4,40.8]
[1759732209630,0.4359035,4567.5,4567.4,40.8]
[1759732210034,0.6559035,4567.5,4567.4,40.8]
[1759732210537,0.4359035,4567.5,4567.4,40.8]
[1759732210734,0.6559035,4567.5,4567.4,40.8]
[1759732211233,0.4359035,4567.5,4567.4,40.8]
[1759732211433,0.6559035,4567.5,4567.4,40.8]
[1759732213437,0.5286035,4567.5,4567.4,40.8]
[1759732213837,0.6559035,4567.5,4567.4,40.8]
[1759732214230,0.4359035,4567.5,4567.4,40.8]
[1759732214537,0.4359035,4567.5,4567.4,41.19397]
[1759732214732,0.6559035,4567.5,4567.4,41.19397]
[1759732215044,0.6559035,4567.5,4567.4,40.8]
[1759732215437,0.4359035,4567.5,4567.4,40.8]
[1759732215633,0.6559035,4567.5,4567.4,40.8]
[1759732216034,0.4359035,4567.5,4567.4,40.8]
[1759732216235,0.6559035,4567.5,4567.4,40.8]
[1759732216832,0.0016035,4567.5,4567.4,40.8]
[1759732217836,0.4605035,4567.5,4567.4,40.8]
[1759732218139,0.6805035,4567.5,4567.4,40.8]
[1759732218537,0.4605035,4567.5,4567.4,40.8]
[1759732218839,0.6805035,4567.5,4567.4,40.8]
[1759732219336,0.3321,4566.9,4566.8,3.2098046]
[1759732219539,0.7675,4566.9,4566.8,3.2098046]
[1759732219840,0.7675,4566.9,4566.8,44.0098046]
[1759732220139,0.5521,4566.9,4566.8,44.0098046]
[1759732220939,0.3321,4566.9,4566.8,44.0098046]
[1759732221139,0.5521,4566.9,4566.8,44.0098046]
[1759732221338,0.3321,4566.9,4566.8,44.0098046]
[1759732221639,0.5521,4566.9,4566.8,44.0098046]
[1759732222236,0.22,4566.9,4566.8,44.0098046]
[1759732222436,0.22,4566.9,4566.8,44.4038346]
[1759732222636,0.3321,4567.4,4567.3,0.39398]
[1759732222637,0.5475,4567.4,4567.3,0.39398]
[1759732222932,0.7675,4567.4,4567.1,0.394]
[1759732223134,0.3321,4567.3,4566.8,44.0098046]
[1759732223339,0.4589,4567.0,4566.9,0.39401]
[1759732223535,0.6743,4567.0,4566.9,0.39401]
[1759732223932,0.8943,4567.0,4566.9,0.39401]
[1759732224837,0.6743,4567.0,4566.9,0.39401]
[1759732225338,0.8943,4567.0,4566.9,0.39401]
[1759732225539,0.3321,4567.4,4566.9,0.98505]
[1759732225833,0.1284035,4567.5,4566.9,0.98505]
[1759732225834,0.0016035,4567.5,4567.4,0.39397]
[1759732226246,0.0016035,4567.5,4567.4,41.19397]
[1759732226741,13.52941176,4568.4,4567.8,0.98484]
[1759732227045,13.52941176,4568.4,4568.3,3.6017]
[1759732227638,0.5475,4568.3,4567.7,3.2078]
[1759732227839,0.2154,4568.1,4568.0,0.39392]
[1759732228047,0.5475,4568.1,4568.0,0.39392]
[1759732228940,0.3321,4568.1,4568.0,0.39392]
[1759732229337,0.5475,4568.1,4568.0,0.39392]
[1759732229542,0.5475,4567.8,4567.7,3.2078]
[1759732229741,0.5475,4567.8,4567.7,3.60175]
[1759732231046,0.7536,4567.8,4567.7,3.2078]
[1759732231849,0.9736,4567.8,4567.7,3.2078]
[1759732233153,1.43925555,4567.8,4567.7,3.2078]
[1759732233750,1.21925555,4567.8,4567.7,3.2078]
[1759732233951,1.43925555,4567.8,4567.7,3.2078]
[1759732234249,0.7638,4566.9,4566.8,0.0020046]
[1759732234448,0.9838,4566.9,4566.8,0.0020046]
[1759732234642,1.84359174,4566.9,4566.8,0.0020046]
[1759732234843,1.22957174,4566.9,4566.8,0.0020046]
[1759732235148,1.44957174,4566.9,4566.8,0.0020046]
[1759732235350,1.22957174,4566.9,4566.8,0.0020046]
[1759732235648,1.44957174,4566.9,4566.8,0.0020046]
[1759732236049,1.22957174,4566.9,4566.8,0.0020046]
[1759732236349,1.44957174,4566.9,4566.8,0.0020046]
[1759732239047,1.22957174,4566.9,4566.8,0.0020046]
[1759732239249,1.44957174,4566.9,4566.8,0.0020046]
[1759732240054,1.22957174,4566.9,4566.8,0.0020046]
[1759732240256,1.44957174,4566.9,4566.8,0.0020046]
[1759732240445,1.44957174,4566.9,4566.3,0.39407]
[1759732240446,0.7638,4566.3,4566.2,3.2078]
[1759732240648,0.9838,4566.3,4566.2,3.2078]
[1759732241353,0.7638,4566.3,4566.2,3.21048944]
[1759732241543,0.7638,4565.6,4565.5,3.2078]
[1759732241749,0.7638,4565.1,4565.0,44.0078]
[1759732242050,0.9838,4565.1,4565.0,44.0078]
[1759732242552,0.98633759,4565.1,4565.0,44.00982875]
[1759732242756,0.98633759,4565.1,4565.0,0.00202875]
[1759732243049,0.1339,4564.0,4563.6,0.3943]
[1759732243250,0.5477,4563.7,4563.6,0.3943]
[1759732243452,0.464,4564.0,4563.9,0.39428]
[1759732243655,0.622,4564.0,4563.9,0.39428]
[1759732243855,0.464,4564.0,4563.9,41.19700934]
[1759732244154,0.684,4564.0,4563.9,41.19700934]
[1759732244454,0.464,4564.0,4563.9,41.19700934]
[1759732244657,0.684,4564.0,4563.9,41.19700934]
[1759732244853,0.684,4564.0,4563.9,40.80272934]
[1759732246652,1.51197,4564.0,4563.9,0.00272934]
[1759732247452,1.29197,4564.0,4563.9,0.00272934]
[1759732247656,0.3301,4564.0,4563.9,0.00272934]
[1759732247954,0.464,4565.0,4564.9,0.39419]
[1759732248156,0.902,4565.0,4564.6,3.2078]
[1759732248354,0.3301,4564.9,4564.6,3.60201]
[1759732248550,0.5481,4564.7,4564.6,3.60202]
[1759732248855,0.3539,4565.0,4564.9,0.39419]
[1759732248856,0.1339,4565.0,4564.9,0.39419]
[1759732249160,0.684,4565.0,4564.9,40.8]
[1759732249555,0.464,4565.0,4564.9,40.8]
[1759732249951,0.684,4565.0,4564.9,40.8]
[1759732250254,0.464,4565.0,4564.9,40.8]
[1759732250454,0.684,4565.0,4564.9,40.8]
[1759732251064,0.3301,4564.2,4564.1,3.2078]
[1759732251252,0.5501,4564.2,4564.1,3.2078]
[1759732251560,0.5501,4564.2,4564.1,44.0078]
[1759732252854,0.94435,4564.2,4564.1,40.8]
[1759732253054,0.3301,4564.2,4564.1,40.8]
[1759732253255,0.5501,4564.2,4564.1,40.8]
[1759732253958,0.6756,4564.0,4563.9,0.39699934]
[1759732254356,0.6756,4564.0,4563.9,41.19699934]
[1759732254857,0.6756,4564.0,4563.9,40.80272934]
[1759732255054,0.1275,4564.0,4563.9,40.80272934]
[1759732255260,0.3301,4564.4,4564.3,0.39423]
[1759732255452,0.3301,4564.4,4563.9,40.80272934]
[1759732255453,0.438,4564.4,4564.2,3.2078]
[1759732255653,0.5501,4564.3,4564.1,0.39425]
[1759732255954,0.4576,4564.0,4563.9,41.19700934]
[1759732256455,0.6576,4564.0,4563.9,41.19700934]
[1759732256660,0.4576,4564.0,4563.9,40.80272934]
[1759732256855,0.6776,4564.0,4563.9,40.80272934]
[1759732257254,0.4576,4564.0,4563.9,40.80272934]
[1759732257453,0.6776,4564.0,4563.9,40.80272934]
[1759732257955,0.6776,4564.0,4563.9,41.19700934]
[1759732257956,0.22,4564.0,4563.9,41.19700934]
[1759732258267,0.3301,4564.4,4564.3,0.39424]
[1759732258560,0.7681,4564.4,4564.3,0.39424]
[1759732259058,0.3301,4564.4,4564.3,0.39424]
[1759732259359,0.5501,4564.4,4564.3,0.39424]
[1759732259555,0.3301,4564.4,4564.3,0.39424]
[1759732259751,0.5501,4564.4,4564.3,0.39424]
[1759732260056,0.3301,4564.4,4564.3,0.39424]
[1759732260358,0.5501,4564.4,4564.3,0.39424]
[1759732260556,0.3301,4564.4,4564.3,0.39424]
[1759732260762,0.5501,4564.4,4564.3,0.39424]
[1759732261762,0.5501,4564.4,4564.3,41.19424]
[1759732262660,0.3301,4564.4,4564.3,41.19424]
[1759732262862,0.5501,4564.4,4564.3,41.19424]
[1759732263861,0.5501,4564.4,4564.3,40.8]
[1759732264058,0.3301,4564.4,4564.3,41.19424]
[1759732264264,0.5501,4564.4,4564.3,41.19424]
[1759732264466,0.5501,4564.4,4564.3,40.8]
[1759732264767,0.3301,4564.4,4564.3,40.8]
[1759732264958,0.3301,4564.4,4563.9,0.00272934]
[1759732264959,0.8888,4564.0,4563.9,0.00272934]
[1759732265561,0.8888,4564.0,4563.9,40.80272934]
[1759732265962,0.8888,4564.0,4562.9,0.19544682]
[1759732265963,0.3301,4563.3,4563.2,3.60213]
[1759732266161,0.4576,4564.0,4563.9,0.39428]
[1759732266370,0.3455,4564.5,4564.4,0.39423]
[1759732266571,0.7117,4564.5,4564.4,0.39423]
[1759732266962,0.3301,4564.9,4564.8,0.3942]
[1759732267273,0.00253759,4565.1,4565.0,0.39418]
[1759732267472,0.55263759,4565.1,4565.0,3.60198]
[1759732267674,0.55263759,4565.1,4565.0,44.40198]
[1759732268070,0.55263759,4565.1,4565.0,41.19418]
[1759732268269,0.33263759,4565.1,4565.0,41.19418]
[1759732268568,0.55263759,4565.1,4565.0,41.19418]
[1759732269175,1.02087184,4565.1,4565.0,41.19418]
[1759732270768,0.5587,4564.5,4564.4,0.396242]
[1759732270962,1.1088,4564.5,4564.4,3.604042]
[1759732271165,1.1088,4564.5,4564.4,3.209812]
[1759732271362,1.1088,4564.5,4564.4,44.009812]
[1759732271570,1.57778884,4564.5,4564.4,40.802012]
[1759732273175,1.57778884,4564.5,4564.4,0.002012]
[1759732274070,0.8888,4564.0,4563.9,3.2078]
[1759732274275,1.57778884,4564.0,4563.9,3.2078]
[1759732274573,1.36458884,4564.0,4563.9,44.0078]
[1759732274966,1.14458884,4564.0,4563.9,44.0078]
[1759732275171,1.14458884,4564.0,4563.9,44.0105178]
[1759732275370,1.36458884,4564.0,4563.9,44.0105178]
[1759732275568,0.92658884,4564.0,4563.9,44.0105178]
[1759732275775,1.14658884,4564.0,4563.9,44.0105178]
[1759732276674,0.92658884,4564.0,4563.9,44.0105178]
[1759732277074,1.14658884,4564.0,4563.9,44.0105178]
[1759732277476,0.92658884,4564.0,4563.9,44.0105178]
[1759732277680,1.14658884,4564.0,4563.9,44.0105178]
[1759732277874,0.92658884,4564.0,4563.9,44.0105178]
[1759732278174,1.14658884,4564.0,4563.9,44.0105178]
[1759732278574,0.92658884,4564.0,4563.9,44.0105178]
[1759732278776,1.14658884,4564.0,4563.9,44.0105178]
[1759732280078,1.14658884,4564.0,4563.9,40.8027178]
[1759732280577,0.59648884,4564.0,4563.9,40.8027178]
[1759732280779,3.2078,4564.7,4564.0,0.98568]
[1759732280974,0.00253759,4565.1,4564.9,0.39419]
[1759732281276,0.68908402,4565.0,4564.7,0.3942]
[1759732281476,0.5567,4564.8,4564.7,0.3942]
[1759732281680,1.24578402,4564.8,4564.7,0.3942]
[1759732281978,1.02178402,4564.8,4564.7,0.3942]
[1759732282169,1.02178402,4564.8,4564.7,41.1942]
[1759732282371,0.68908402,4564.8,4564.7,41.1942]
[1759732282566,0.5527,4564.8,4564.7,41.1942]
[1759732282977,0.3327,4564.8,4564.7,41.1942]
[1759732283179,0.5527,4564.8,4564.7,41.1942]
[1759732284176,1.02167553,4564.8,4564.7,40.8]
[1759732284377,0.68897553,4564.8,4564.7,41.19421]
[1759732284674,0.80167553,4564.8,4564.7,41.19421]
[1759732284874,1.02167553,4564.8,4564.7,41.19421]
[1759732286177,0.5527,4564.8,4564.7,40.8]
[1759732286869,0.1357,4565.0,4564.8,0.3942]
[1759732287074,0.00253759,4565.1,4565.0,0.39418]
[1759732287273,0.55523759,4565.1,4565.0,0.39418]
[1759732287474,1.02408904,4565.1,4565.0,0.39418]
[1759732288077,0.55523759,4565.1,4565.0,0.39418]
[1759732290878,0.77923759,4565.1,4565.0,0.39418]
[1759732291882,0.55923759,4565.1,4565.0,0.39418]
[1759732292090,0.77923759,4565.1,4565.0,0.39418]
[1759732292786,0.55923759,4565.1,4565.0,0.39418]
[1759732293185,0.77923759,4565.1,4565.0,0.39418]
[1759732295583,0.55923759,4565.1,4565.0,0.39418]
[1759732295786,0.77923759,4565.1,4565.0,0.39418]
[1759732296187,0.33523759,4565.1,4565.0,0.39418]
[1759732296585,0.55523759,4565.1,4565.0,0.39418]
[1759732297287,0.77593759,4565.1,4565.0,0.39418]
[1759732297477,0.98113759,4565.1,4565.0,0.39418]
[1759732297878,0.8914,4565.0,4564.9,3.2078]
[1759732298585,1.1114,4565.0,4564.9,3.2078]
[1759732300589,1.50558,4565.0,4564.7,41.19421]
[1759732300785,0.554,4564.8,4564.7,41.19421]
[1759732301990,0.774,4564.8,4564.7,41.19421]
[1759732303194,0.554,4564.8,4564.7,40.8]
[1759732303387,0.774,4564.8,4564.7,40.8]
[1759732303694,0.554,4564.8,4564.7,40.8]
[1759732303893,0.774,4564.8,4564.7,40.8]
[1759732304192,0.554,4564.8,4564.7,40.8]
[1759732304389,0.774,4564.8,4564.7,40.8]
[1759732304793,0.554,4564.8,4564.7,40.8]
[1759732304994,0.774,4564.8,4564.7,40.8]
[1759732305194,0.1322,4565.0,4564.8,0.3942]
[1759732305494,0.00253759,4565.1,4565.0,0.39418]
[1759732305495,0.33583759,4565.1,4565.0,0.39418]
[1759732305688,0.55583759,4565.1,4565.0,0.39418]
[1759732306382,0.33583759,4565.1,4565.0,0.39418]
[1759732306586,0.77653759,4565.1,4565.0,0.39418]
[1759732307095,0.98173759,4565.1,4565.0,0.39418]
[1759732307593,0.77653759,4565.1,4565.0,0.39418]
[1759732307786,0.55653759,4565.1,4565.0,0.39418]
[1759732307984,0.77653759,4565.1,4565.0,0.39418]
[1759732308189,0.55653759,4565.1,4565.0,0.39418]
[1759732308385,0.98173759,4565.1,4565.0,0.39418]
[1759732308697,0.8788,4565.0,4564.9,3.2078]
[1759732309189,0.8788,4565.0,4564.8,0.3942]
[1759732309384,0.753,4564.9,4564.8,0.3942]
[1759732310197,1.22315583,4564.9,4564.8,0.3942]
[1759732312294,1.44315583,4564.9,4564.8,0.3942]
[1759732312889,1.12865583,4564.9,4564.7,40.8]
[1759732313093,0.78465583,4564.8,4564.7,40.8]
[1759732314293,0.47015583,4564.8,4564.7,40.8]
[1759732314493,0.00253759,4565.1,4565.0,0.96178]
[1759732314699,0.00253759,4565.1,4565.0,4.49588]
[1759732315895,0.00253759,4565.1,4565.0,45.29588]
[1759732317392,0.2214,4566.2,4566.1,0.39408]
[1759732317597,1.22571924,4566.2,4566.1,0.83008]
[1759732318193,0.7559,4566.2,4566.1,41.95638]
[1759732318398,0.7559,4566.2,4566.1,41.63008]
[1759732318596,0.75844329,4566.2,4566.1,41.63008]
[1759732318900,0.53844329,4566.2,4566.1,41.63008]
[1759732319194,0.53844329,4566.2,4566.1,42.13262963]
[1759732319195,0.53704329,4566.2,4566.1,42.13262963]
[1759732319590,0.53704329,4566.2,4566.1,41.95638]
[1759732319797,0.53704329,4566.2,4566.1,41.63008]
[1759732320399,0.31704329,4566.2,4566.1,41.63008]
[1759732320592,0.53704329,4566.2,4566.1,41.63008]
[1759732320787,0.31704329,4566.2,4566.1,41.63008]
[1759732320989,0.47704329,4566.2,4566.1,41.63008]
[1759732321199,0.47704329,4566.2,4566.1,41.236]
[1759732321596,0.53704329,4566.2,4566.1,41.236]
[1759732322895,0.25338427,4566.9,4566.1,46.5623]
[1759732323105,0.4385,4567.5,4567.4,1.15627]
[1759732323399,0.90746914,4567.5,4567.4,0.7623]
[1759732323602,1.03326914,4567.5,4567.4,0.436]
[1759732323798,1.03326914,4567.5,4567.4,41.236]
[1759732323998,1.03496084,4567.5,4567.4,41.56422834]
[1759732324297,1.03496084,4567.5,4567.4,40.80192834]
[1759732324598,0.5643,4566.5,4566.3,3.5341]
[1759732324792,0.6585,4566.4,4566.3,3.2078]
[1759732325102,0.973,4566.4,4566.3,3.9701]
[1759732325600,0.973,4566.4,4566.3,44.77242947]
[1759732325793,0.753,4566.4,4566.3,44.77242947]
[1759732325997,0.5316,4567.4,4567.3,0.61428]
[1759732326303,0.68967708,4567.4,4567.3,0.7623]
[1759732326600,0.0016917,4567.5,4567.4,0.7623]
[1759732326790,0.2216917,4567.5,4567.4,0.7623]
[1759732327196,0.2216917,4567.5,4567.4,41.5623]
[1759732327399,0.2216917,4567.5,4567.4,41.95627]
[1759732327596,0.2216917,4567.5,4567.4,41.5623]
[1759732327797,0.5361917,4567.5,4567.4,41.5623]
[1759732328490,0.6619917,4567.5,4567.4,41.5623]
[1759732328694,0.4419917,4567.5,4567.4,41.5623]
[1759732328901,0.6619917,4567.5,4567.4,41.5623]
[1759732329297,0.6619917,4567.5,4567.4,41.0203]
[1759732330208,1.1004917,4567.5,4567.4,0.2203]
[1759732330403,0.9746917,4567.5,4567.4,0.7623]
[1759732330598,0.9746917,4567.5,4567.4,41.5623]
[1759732331105,0.8804917,4567.5,4567.4,0.7623]
[1759732331297,0.8804917,4567.5,4567.4,0.436]
[1759732331497,1.1004917,4567.5,4567.4,0.436]
[1759732332504,1.1004917,4567.5,4567.4,0.7623]
[1759732332894,1.1004917,4567.5,4567.4,0.436]
[1759732333402,0.8804917,4567.5,4567.4,0.436]
[1759732333600,1.1004917,4567.5,4567.4,0.436]
[1759732334105,0.4385,4567.2,4567.1,41.1263]
[1759732334307,0.753,4567.2,4567.1,41.1263]
[1759732337801,1.67387762,4567.2,4567.1,40.8]
[1759732338101,0.7471,4566.8,4566.7,0.7606]
[1759732338399,0.9671,4566.8,4566.7,41.5606]
[1759732338706,0.9671,4566.8,4566.7,41.011]
[1759732339407,0.9671,4566.8,4566.7,41.3477]
[1759732339906,0.9671,4566.8,4566.7,0.211]
[1759732341001,1.26485,4566.5,4566.4,3.4188]
[1759732341401,1.26485,4566.5,4566.4,3.2078]
[1759732342211,6.26485,4566.5,4566.3,0.00232947]
[1759732342401,0.658,4566.4,4566.3,0.00232947]
[1759732342610,0.9671,4566.4,4566.3,0.00232947]
[1759732342906,0.5344,4566.4,4566.3,0.76292947]
[1759732343211,0.5344,4567.2,4567.1,0.4239]
[1759732343511,1.61612267,4567.2,4567.1,0.7606]
[1759732343911,1.82882267,4567.2,4567.1,0.7606]
[1759732344413,1.60882267,4567.2,4567.1,0.7606]
[1759732344616,1.21483267,4567.2,4567.1,0.7606]
[1759732344805,1.43483267,4567.2,4567.1,0.7606]
[1759732345106,1.21483267,4567.2,4567.1,0.7606]
[1759732345307,1.43483267,4567.2,4567.1,0.7606]
[1759732345811,0.438,4566.9,4566.8,3.4188]
[1759732346005,0.7471,4566.9,4566.8,3.9684]
[1759732346211,1.60885267,4566.9,4566.8,0.7606]
[1759732347010,1.82885267,4566.9,4566.8,0.7606]
[1759732347911,1.43483267,4566.9,4566.8,0.7606]
[1759732348609,1.43483267,4566.9,4566.3,3.21012947]
[1759732348610,0.39406,4566.5,4566.3,3.21012947]
[1759732348815,1.43558991,4566.4,4566.3,3.97072947]
[1759732349513,1.12648991,4566.4,4566.3,3.97072947]
[1759732349709,0.3091,4567.2,4566.3,3.63402947]
[1759732349918,0.1274917,4567.5,4567.0,0.7606]
[1759732349919,1.61687768,4567.1,4567.0,0.7606]
[1759732350111,1.82957768,4567.1,4567.0,0.7606]